Cogmind - Beta 11.1 @@@ ROGUE MODE // 2022.12.05 @ 03:03:59 Player: daddywarlord Result: Self-destructed Performance ------------- Evolutions (1) 500 Regions Visited (3) 600 Robots Destroyed (6) 30 Value Destroyed (188) 188 Prototype IDs (0) 0 Alien Tech Used (0) 0 Bonus (0) 0 TOTAL SCORE: 1318 Bonus ------- None Cogmind --------- Core Integrity 362/400 Matter 290/300 Energy 53/265 System Corruption 2% Temperature Cool (18) Movement Walking (190) Ox1 Location -9/Materials Parts ------- > --- POWER (1) -------- Improved Ion Engine > --- PROPULSION (3) --- Aluminum Leg Aluminum Leg > --- UTILITY (3) ------ Small Storage Unit Field Recycling Unit > --- WEAPON (2) ------- Shock Bomb Launcher Shock Bomb Launcher > --- INVENTORY (8) ---- Ion Engine Light Ion Engine Assault Rifle Peak State ------------ > --- POWER ------------ Improved Ion Engine > --- PROPULSION ------- Aluminum Leg Aluminum Leg > --- UTILITY ---------- Small Storage Unit Field Recycling Unit > --- WEAPON ----------- Shock Bomb Launcher Shock Bomb Launcher > --- INVENTORY -------- Ion Engine Light Ion Engine Assault Rifle [Rating: 13] Favorites ----------- Power Ion Engine Engine Ion Engine Propulsion Aluminum Leg Leg Aluminum Leg Utility Small Storage Unit Device Field Recycling Unit Storage Small Storage Unit Weapon Assault Rifle Energy Gun Medium Laser Ballistic Gun Assault Rifle Launcher Shock Bomb Launcher Build | -11 -10 -10 -9 ------- Run | Scr Mat Min Mat Slots Evolved 2 | . . . 2 Power . | . . . . Propulsion 1 | . . . 1 Utility 1 | . . . 1 Weapon . | . . . . Parts Attached 10 | 6 . . 4 Power 2 | 1 . . 1 Engine 2 | 1 . . 1 Core . | . . . . Reactor . | . . . . Propulsion 2 | 2 . . . Treads . | . . . . Leg 2 | 2 . . . Wheel . | . . . . Hover . | . . . . Flight . | . . . . Utility 2 | 1 . . 1 Device 1 | . . . 1 Storage 1 | 1 . . . Processor . | . . . . Hackware . | . . . . Protection . | . . . . Artifact . | . . . . Weapon 4 | 2 . . 2 Energy Gun 1 | 1 . . . Energy Cannon . | . . . . Ballistic Gun 1 | 1 . . . Ballistic Cannon . | . . . . Launcher 2 | . . . 2 Special Weapon . | . . . . Impact Weapon . | . . . . Slashing Weapon . | . . . . Piercing Weapon . | . . . . Special Melee Weapon . | . . . . Unidentified Prototypes . | . . . . Parts Lost . | . . . . Power . | . . . . Propulsion . | . . . . Utility . | . . . . Weapon . | . . . . Highest Loss Streak . | . . . . To Critical Strikes . | . . . . Average Slot Usage (%) 79 | . 85 85 70 Engine 12 | . 14 14 11 Leg 25 | . 28 28 22 Device 1 | . . . 4 Storage 12 | . 14 14 11 Energy Gun 10 | . 14 14 5 Ballistic Gun 10 | . 14 14 5 Launcher 4 | . . . 11 Naked Turns . | . . . . Heaviest Build 32 | 14 14 14 32 Greatest Support 20 | 20 20 20 20 Greatest Overweight (x) 1 | 1 . . 1 Average Overweight (x) . | . . . . Largest Inventory Capacity 8 | 8 8 8 8 Average Capacity 7 | 6 8 8 8 Most Carried 4 | 4 2 2 4 Average Carried 2 | 1 1 2 2 Final Capacity 8 | 8 8 8 8 Final Carried 3 | 1 2 2 3 Class Distribution -------------------- 100% | Mutant Dominant Class ---------------- Mutant | -10/Materials Mutant | -10/Mines Mutant | -9/Materials Resources | -11 -10 -10 -9 ----------- Run | Scr Mat Min Mat Matter Collected 320 | 197 . 87 36 Remotely . | . . . . Salvage Created 248 | . . 93 155 Parts 10 | . . 2 8 Haulers Intercepted . | . . . . Recyclers Shooed . | . . . . Parts Field Recycled 8 | . . . 8 Retrieved Matter 28 | . . . 28 Parts Self-Destructed . | . . . . Prevented . | . . . . Kills | -11 -10 -10 -9 ------- Run | Scr Mat Min Mat Combat Hostiles Destroyed 4 | . . 2 2 Guns 2 | . . 2 . AOE 1 | . . . 1 Classes Destroyed 3 | . . 1 2 Worker 1 | . . . 1 Builder 1 | . . . 1 Grunt 4 | . . 2 2 Best Kill Streak 4 | . . 2 4 Combat Bots Only 2 | . . 2 2 Max Kills in Single Turn 2 | . . 2 2 Gunslinging 1 | . . 1 . Exploded 1 | . . . 1 Melee . | . . . . Uniques/NPCs Destroyed . | . . . . Combat | -11 -10 -10 -9 -------- Run | Scr Mat Min Mat Damage Taken 311 | . . 103 208 Core 51 | . . 13 38 Absorbed by Shields . | . . . . Core Remaining (%) 97 | 100 . 94 . Volleys Fired 11 | . . 8 3 Largest 2 | . . 2 2 Hottest 72 | . . 70 72 Shots Fired 22 | . . 16 6 Gun 16 | . . 16 . Cannon . | . . . . Launcher 6 | . . . 6 Special . | . . . . Kinetic 8 | . . 8 . Thermal 8 | . . 8 . Explosive . | . . . . Electromagnetic 6 | . . . 6 Robot Hit Streak 16 | . . 16 1 Robot Miss Streak 1 | . . . 1 Penetration Max . | . . . . Secondary Targets 1 | . . 1 . Max Gunslinging Chain 1 | . . 1 . Shots Hit Robots 17 | . . 16 1 Core Hits 11 | . . 5 6 Critical Kills . | . . . . Critical Parts Destroyed . | . . . . Critical Strikes 2 | . . 2 . Burn 2 | . . 2 . Melee Attacks . | . . . . Impact . | . . . . Slashing . | . . . . Piercing . | . . . . Sneak Attacks . | . . . . Combat Hostiles . | . . . . Follow-up Attacks . | . . . . Damage Inflicted 503 | . . 200 303 Guns 200 | . . 200 . Cannons . | . . . . Explosions 303 | . . . 303 Melee . | . . . . Ramming . | . . . . Kinetic 98 | . . 98 . Thermal 127 | . . 102 25 Explosive . | . . . . Electromagnetic 278 | . . . 278 Impact . | . . . . Slashing . | . . . . Piercing . | . . . . Highest Corruption 2 | . . . 2 Average Corruption 2 | . . . 2 Corruption Purged . | . . . . Corruption Blocked . | . . . . Overload Shots . | . . . . Overflow Damage 1 | . . . 1 Projectiles . | . . . . Explosions 1 | . . . 1 Melee . | . . . . Knockbacks . | . . . . Impact . | . . . . Kinetic . | . . . . Secondary . | . . . . Self-Inflicted Damage 168 | . . . 168 Shots 7 | . . . 7 Rammed . | . . . . Targets Rammed 1 | . . 1 . Kicked 1 | . . 1 . Crushed . | . . . . Highest Temperature 120 | . . 120 21 Average Temperature 42 | . . 52 13 Received Heat Transfer 81 | . . 57 24 Siege Activations . | . . . . Robots Corrupted 1 | . . . 1 Combat Hostiles 1 | . . . 1 Parts Fried 2 | . . . 2 Impact Corruptions . | . . . . Robots Melted . | . . . . Combat Hostiles . | . . . . Parts Melted 1 | . . 1 . Heat Transferred 494 | . . 444 50 Parts Sabotaged . | . . . . Parts Stolen . | . . . . Parts Stripped . | . . . . Power Chain Reactions 1 | . . . 1 Missiles Intercepted . | . . . . Alert | -11 -10 -10 -9 ------- Run | Scr Mat Min Mat Peak Influence 136 | . . 65 136 Initial 25 | . . . 25 Average 27 | . . 40 27 Maximum Alert Level . | . . . . Low Security (%) 100 | 100 100 100 100 Level 1 . | . . . . Level 2 . | . . . . Level 3 . | . . . . Level 4 . | . . . . Level 5 . | . . . . High Security . | . . . . Max Security . | . . . . Squads Dispatched . | . . . . Investigation . | . . . . Extermination . | . . . . Reinforcement . | . . . . Assault . | . . . . Garrison . | . . . . Intercept . | . . . . Searches Triggered . | . . . . Construction Impeded . | . . . . Haulers Reinforced . | . . . . Active Scanning Responses . | . . . . Cargo Convoy Interrupts . | . . . . Stealth | -11 -10 -10 -9 --------- Run | Scr Mat Min Mat Distress Signals . | . . . . Communications Jammed . | . . . . Distress Signals . | . . . . Times Spotted 7 | . 2 2 3 Peak Tracking Total 3 | . 2 2 3 Tactical Retreats . | . . . . Traps | -11 -10 -10 -9 ------- Run | Scr Mat Min Mat Traps Triggered . | . . . . Indirectly . | . . . . Trap Hack Attempts . | . . . . Triggered . | . . . . Disarmed . | . . . . Reprogrammed . | . . . . Reused . | . . . . Traps Extracted . | . . . . Installed . | . . . . Triggered . | . . . . Machines | -11 -10 -10 -9 ---------- Run | Scr Mat Min Mat Machines Disabled 2 | . . . 2 Max in Single Turn 1 | . . . 1 Machines Sabotaged . | . . . . Garrisons Compromised . | . . . . Overloaded Fab Kills . | . . . . Hacking | -11 -10 -10 -9 --------- Run | Scr Mat Min Mat Machines Accessed 1 | . 1 . . Terminals 1 | . 1 . . Fabricators . | . . . . Repair Stations . | . . . . Recycling Units . | . . . . Scanalyzers . | . . . . Garrison Access . | . . . . Total Hacks 1 | . 1 . . Successful 1 | . 1 . . Failed . | . . . . Catastrophic . | . . . . Database Lockouts . | . . . . Manual . | . . . . Terminals 1 | . 1 . . Fabricators . | . . . . Repair Stations . | . . . . Recycling Units . | . . . . Scanalyzers . | . . . . Garrison Access . | . . . . Terminal Hacks 1 | . 1 . . Record 1 | . 1 . . Fabricator Hacks . | . . . . Repair Station Hacks . | . . . . Recycling Unit Hacks . | . . . . Scanalyzer . | . . . . Garrison Access Hacks . | . . . . Unauthorized Hacks . | . . . . Terminals . | . . . . Fabricators . | . . . . Repair Stations . | . . . . Recycling Units . | . . . . Scanalyzers . | . . . . Garrison Access . | . . . . Data Cores Recovered . | . . . . Used . | . . . . Hacking Detections . | . . . . Full Trace Events . | . . . . Feedback Events . | . . . . Feedback Blocked . | . . . . Robot Schematics Acquired . | . . . . Robots Built . | . . . . Authchips . | . . . . Time . | . . . . Total Robot Build Rating . | . . . . Part Schematics Acquired . | . . . . Parts Built . | . . . . Authchips . | . . . . Time . | . . . . Total Part Build Rating . | . . . . Parts Repaired . | . . . . Time . | . . . . Parts Recycled . | . . . . Recycled Matter . | . . . . Retrieved Matter . | . . . . Retrieved Components . | . . . . Parts Scanalyzed . | . . . . Part Schematics Acquired . | . . . . Parts Damaged . | . . . . Bothacking | -11 -10 -10 -9 ------------ Run | Scr Mat Min Mat Used RIF Installer . | . . . . Robots Hacked . | . . . . Non-combat . | . . . . Combat . | . . . . Robot Hacks Applied . | . . . . Relay Couplers Released . | . . . . Fabnet Peak Effective % . | . . . . Robots Rewired . | . . . . Allies Hacked . | . . . . Hacks Repelled . | . . . . Allies | -11 -10 -10 -9 -------- Run | Scr Mat Min Mat Total Allies . | . . . . Largest Group . | . . . . Highest-Rated Group . | . . . . Highest-Rated Ally . | . . . . Total Orders . | . . . . Ally Attacks . | . . . . Total Damage . | . . . . Kills . | . . . . Allies Corrupted . | . . . . Allies Melted . | . . . . Intel | -11 -10 -10 -9 ------- Run | Scr Mat Min Mat Robot Analysis Total . | . . . . Derelict Logs Recovered 1 | . . 1 . Drone Launches . | . . . . Drone Recoveries . | . . . . Exploration | -11 -10 -10 -9 ------------- Run | Scr Mat Min Mat Turns Passed 826 | 55 113 374 284 Spaces Moved 599 | 41 94 291 173 Core 17 | 17 . . . Treads . | . . . . Legs 582 | 24 94 291 173 Wheels . | . . . . Hover . | . . . . Flight . | . . . . Fastest Speed 50 | 50 120 120 120 Average Speed 126 | 104 120 120 146 Slowest Speed 190 | 120 120 120 190 Overloaded Moves . | . . . . Propulsion Burnouts . | . . . . Robots Hopped . | . . . . Cave-ins Triggered . | . . . . Exploration Rate (%) 24 | 4 21 59 15 Regions Visited 3 Branch Regions 1 Pre-discovered Areas 1 | . . 1 . Known Exits Taken . | . . . . Unknown Exits Taken 3 | 1 1 1 . Scrap Searched . | . . . . Spaces Dug . | . . . . Terrain Destroyed 5 | . . . 5 Melee . | . . . . Projectile . | . . . . AOE 5 | . . . 5 Terrain Rammed . | . . . . Walls Destroyed . | . . . . Machines Disabled . | . . . . Actions | -11 -10 -10 -9 --------- Run | Scr Mat Min Mat Total 644 | 53 94 299 198 Wait 11 | . . . 11 Move 596 | 40 93 290 173 Hop . | . . . . Pick Up 12 | 7 1 . 4 Fast Attach . | . . . . Attach 10 | 6 . . 4 Detach 1 | . . . 1 Swap . | . . . . Drop 2 | . . . 2 Fire 11 | . . 8 3 Melee . | . . . . Ram . | . . . . Kick 1 | . . 1 . Crush . | . . . . Escape Stasis . | . . . . Rewire . | . . . . Trap . | . . . . Miscellaneous . | . . . . Route ------- -11/Scrapyard -10/Materials (discovered 2 exits: [*Mat] / [*Min]) -10/Mines -9/Materials (discovered 2 exits: Min x2) History --------- Turn | Location | Event 14 | -11/Scrapyard | Discovered new exit (range 14) 56 | -11/Scrapyard | Entered Materials 159 | -10/Materials | Discovered new exit (range 7) 168 | -10/Materials | Discovered new exit (range 13) 169 | -10/Materials | Entered Mines 170 | -10/Mines | Learned location of Storage (-8) 243 | -10/Mines | Found a hidden stash of uninstalled traps 306 | -10/Mines | Build established: Mutant 520 | -10/Mines | Discovered new exit (range 7) 543 | -10/Mines | Entered Materials 543 | -9/Materials | Evolved 2 slots: Propulsion x1, Utility x1 544 | -9/Materials | Identified exit to Mines 827 | -9/Materials | Self-destructed Last Messages --------------- 00747_ Field Recycling Unit collects Lrn. Tractor Beam, recycling 4 matter... 00748_ Field Recycling Unit collects Lrn. Tractor Beam, recycling 4 matter... 00750_ Field Recycling Unit collects Lrn. Tractor Beam, recycling 4 matter... [Achievement: Let's See Who's Tougher] 00814_ G-34 Mercenary destroyed. 00814_ Door malfunctions. 00814_ Electrolysis Chamber disabled. 00815_ Acquired 26 matter. 00818_ Acquired 10 matter. 00822_ U-05 Engineer lays Concrete. 00824_ Destroyed Lgt. Nuclear Core. 00824_ U-05 Engineer destroyed. 00824_ K-01 Serf destroyed. 00824_ Chain reaction triggered in Corrupted Lgt. Ion Engine. 00825_ G-47 Trooper system terminally corrupted. [Achievement: Power Corrupts] 00825_ Aluminum Leg fried. Map ----- +----------------------------------------------------+ | ???????????????????????????????????????????? | | ???????????????????????????????????????????? | | ???????????????????????????????????????????? | | ???????????????????????????????????????????? | | ???????????????????????????????????????????? | | ???????????????????????????????????????????? | | ???????????????????????????????????????????? | | ???????????????????????????????????????????? | | ???????????????????????????????????????????? | | ???????????????????????????????????????????? | | ???????????????????????????????????????????? | | ???????????????????????????????????????????? | | ???????????????????????????????????????????? | | ???????????????????????????????????????????? | | ???????????????????????????????????????????? | | ???????????????????????????????????????????? | | ???????????????????????????????????????????? | | ???????????????????????????????????????????? | | ???????????##############??????????????????? | | ???????????# #??????????????????? | | ???????????# "" #??????????????????? | | ?????????????" " #??????????????????? | | ??????????????" #??????????????????? | | ??????????????? ! ???????????????????? | | ???????????????##/#;;;### #????????????????? | | ???????????????# %g@ = #????????????????? | | ???????????????#!=a = +?????????????? | | ??????########?#|%;;;#;##+####?????????????? | | ??????# #?# !# ??????????????????? | | ??????# """ #?# # ????????????????? | | ??????# """ #?# # ???????????????? | | ??????# """ #?# # #??????????????? | | ??????# #?# ####################?????? | | ??????# #?# # # || #?????? | | ?????##+##+##### # # || = #?????? | | ?????# # # || #?????? | | ?????# + # #?????? | | ?????# ########### ###+##########??? | | ?????# # ## + #???# ??? | | ?????# # """## ### #???# ???? | | ?????# # """## #?# #???# ???? | | ?????# # """## #?# #???# #???? | | ?????# + ###########?# #???# #??## | | ?##### # """#???????????# #???# #??# | | ?# # """#?########??# #???# #### | | ?# # """#?# #??# #???# + | | ?# # #?# #### ##### #### | | ?# ##########?# + #??# | | ?#][ #??????????# """ ####### #??## | | ?#][ #??????????# """ #?????#! !#???? | +----------------------------------------------------+ Best States ------------- Heat Dissipation 28 Energy Generation 12 Energy Capacity 265 Matter Stores 300 Matter Capacity 300 Sight Range 16 Terrain Scan Density 10 Evasion (%) 55 Item Schematics ----------------- None Robot Schematics ------------------ None Fabricated ------------ Nothing Alien Tech Used ----------------- None Achievements -------------- Let's See Who's Tougher Power Corrupts Challenges ------------ None Game ------ Seed LobotomyThermicDetonator Manual? 0 Play Time 00:13:55 Cumulative 4.9 hours Start 2022.12.05 @ 02:53:30 End 2022.12.05 @ 03:03:59 Sessions 1 Manual Loads 0 Difficulty Rogue Special Mode None Game No. 14 Rogue 14 Adventurer 0 Explorer 0 Win Type - Total 0 Types 0/0/0/0/0/0/0/0/0 Lore% 1 Gallery% 9 Achievement% 4 Wizard Run 0 Options --------- ASCII 0 Keyboard 0 Movement Mouse Keybinds 0 Fullscreen 1 Font 18/SmallcapsGlow Map View 76x50 Tactical HUD 1 Map Filters NONE Filters NONE Steam 1 RUN: 10dddc78-6593-4e8a-8ab0-7b77e079da59